Workbook

Sheet 表26-公共工程品質管理人員回訓班性別比例
A1: 公共工程品質管理人員回訓班性別比例
A2: 表26
A3: 年別 | B3: 總計 | D3: 男 | F3: 女
B4: 人數 | C4: 比例 | D4: 人數 | E4: 比例 | F4: 人數 | G4: 比例
A5: 99年 | B5: =D5+F5 -> 4,727 | C5: =E5+G5 -> 100% | D5: 4,253 | E5: =D5/B5 -> 89.97% | F5: 474 | G5: =F5/B5 -> 10.03%
A6: 100年 | B6: 4,494 | C6: =E6+G6 -> 100% | D6: 3,954 | E6: 87.98% | F6: 540 | G6: 12.02%
A7: 101年 | B7: 4,877 | C7: 100% | D7: 4,287 | E7: 87.90% | F7: 590 | G7: 12.10%
A8: 102年 | B8: 5,730 | C8: 100% | D8: 4,926 | E8: 85.97% | F8: 804 | G8: 14.03%
A9: 103年 | B9: 5,450 | C9: 100% | D9: 4,687 | E9: 86.00% | F9: 763 | G9: 14.00%
A10: 104年 | B10: 5,910 | C10: 100% | D10: 5,084 | E10: 86.02% | F10: 826 | G10: 13.98%
A11: 105年 | B11: 6,281 | C11: 100% | D11: 5,323 | E11: 84.75% | F11: 958 | G11: 15.25%
A12: 106年 | B12: 6,605 | C12: 100% | D12: 5,508 | E12: 83.39% | F12: 1,097 | G12: 16.61%
A13: 107年 | B13: =D13+F13 -> 6,723 | C13: 100% | D13: 5,581 | E13: =D13/B13 -> 83.01% | F13: 1,142 | G13: =F13/B13 -> 16.99%
A14: 108年 | B14: 7,330 | C14: 100% | D14: 6,052 | E14: =D14/B14 -> 82.56% | F14: 1,278 | G14: =F14/B14 -> 17.44%
A15: 109年 | B15: 6,890 | C15: 100% | D15: 5,554 | E15: =D15/B15 -> 80.61% | F15: 1,336 | G15: =F15/B15 -> 19.39%
A16: 110年 | B16: 6,987 | C16: =E16+G16 -> 100% | D16: 5,625 | E16: =D16/B16 -> 80.51% | F16: 1,362 | G16: =F16/B16 -> 19.49%
A17: 111年 | B17: =D17+F17 -> 9,178 | C17: =E17+G17 -> 100% | D17: 7,165 | E17: =D17/B17 -> 78.07% | F17: 2,013 | G17: =F17/B17 -> 21.93%
A18: 112年 | B18: 9,489 | C18: =E18+G18 -> 100% | D18: 7,512 | E18: 79.17% | F18: 1,977 | G18: 20.83%
A19: 113年 | B19: 8,985 | C19: =E19+G19 -> 100% | D19: 6,907 | E19: 76.87% | F19: 2,078 | G19: 23.13%
A20: 資料來源：工管處
A21: 備註： 1.性別資料使用：工程領域因工作場所之特殊性，進而造成就讀土木、建築、水利等工程相關科系人員性別的落差，故女性參與訓練之人數亦較少，惟近年女性比率有逐年增加。 2.應用深化：持續宣導各代訓機構加強女性品管人員之招訓。另為了解公共工程品質管理人員回訓班各性別合格人數，以利統計分析，未來將新增合格人數之複分類。 3.未進行國際性別統計比較原因說明：有關品管人員之應用無涉及國際化業務，亦無相關資料比較。
